bitfinex-derivatives/quotes_BNBF0:USTF0_20251027
["timestamp","ask_amount","ask_price","bid_price","bid_amount"]
[1761555801943,1.28077295,1153.7,1151.4,0.641303]
[1761555802139,1.28077295,1153.8,1151.5,0.54492695]
[1761555802444,1.28077295,1153.9,1151.6,0.54492695]
[1761555802643,1.28077295,1154.0,1151.7,0.54492695]
[1761555802842,1.28077295,1154.0,1151.3,0.641303]
[1761555803041,1.28077295,1154.0,1151.4,0.54454797]
[1761555803244,1.28077295,1154.0,1151.5,0.54454797]
[1761555803444,1.28077295,1154.0,1151.6,0.54454797]
[1761555803743,1.28077295,1154.1,1151.7,0.54454797]
[1761555804045,0.15096599,1154.7,1151.8,0.54454797]
[1761555804245,0.15096599,1154.7,1151.9,0.54454797]
[1761555804445,0.15096599,1154.7,1152.0,0.54454797]
[1761555804746,0.15096599,1154.7,1151.2,0.641303]
[1761555804947,1.28077295,1154.8,1151.3,1.18495793]
[1761555805243,1.28077295,1154.9,1151.4,0.54365493]
[1761555805542,1.28077295,1154.9,1151.5,0.54365493]
[1761555805747,1.28077295,1154.9,1151.6,0.54365493]
[1761555806042,1.28077295,1154.9,1151.7,0.54365493]
[1761555806243,1.43168525,1155.0,1151.8,0.54365493]
[1761555806442,1.43168525,1155.0,1151.9,0.54365493]
[1761555806647,1.43168525,1155.0,1152.0,0.54365493]
[1761555806847,1.28077295,1154.9,1151.3,0.641303]
[1761555807045,1.28077295,1154.9,1151.4,0.54285366]
[1761555807248,1.43168525,1155.0,1151.5,0.54285366]
[1761555807445,1.43168525,1155.0,1151.6,0.54285366]
[1761555807749,1.43168525,1155.0,1151.7,0.54285366]
[1761555807947,0.1509123,1155.0,1151.8,0.54285366]
[1761555808144,0.1509123,1155.0,1151.0,0.641303]
[1761555808350,1.28077295,1154.7,1151.1,1.18402005]
[1761555808550,1.28077295,1153.9,1151.2,0.54271705]
[1761555808949,1.28077295,1153.8,1151.3,0.54271705]
[1761555809152,0.1509123,1155.0,1150.9,0.641303]
[1761555809153,1.28077295,1153.7,1150.9,0.641303]
[1761555809351,1.28077295,1153.6,1151.0,0.54288833]
[1761555809546,1.28077295,1153.8,1151.1,0.54288833]
[1761555809746,1.28077295,1153.8,1151.2,0.54288833]
[1761555809950,1.28077295,1153.8,1150.8,0.641303]
[1761555810148,1.28077295,1153.9,1150.9,0.54290442]
[1761555810352,1.28077295,1153.9,1151.0,0.54290442]
[1761555810552,1.28077295,1154.2,1151.1,0.54290442]
[1761555810849,1.28077295,1154.2,1151.2,0.54290442]
[1761555811048,1.28077295,1154.1,1151.3,0.54290442]
[1761555811247,1.28077295,1154.1,1151.4,0.54290442]
[1761555811452,1.28077295,1153.7,1151.0,0.641303]
[1761555811651,1.28077295,1153.8,1151.1,0.54296331]
[1761555811850,1.28077295,1154.0,1151.2,1.18426631]
[1761555812050,1.28077295,1154.0,1151.3,0.54296331]
[1761555812250,1.28077295,1154.1,1151.4,0.54296331]
[1761555812452,1.28077295,1154.0,1151.5,0.54296331]
[1761555812652,1.28077295,1154.0,1151.6,0.54296331]
[1761555812853,1.28077295,1154.0,1151.2,0.641303]
[1761555813053,1.28077295,1154.1,1151.3,0.54293907]
[1761555813250,1.28077295,1154.1,1151.4,0.54293907]
[1761555813553,1.28077295,1154.1,1151.5,0.54293907]
[1761555813751,1.28077295,1154.1,1151.6,0.54293907]
[1761555813954,1.28077295,1154.3,1151.7,0.54293907]
[1761555814151,1.28077295,1154.3,1151.3,0.641303]
[1761555814451,0.1509123,1155.0,1151.4,0.54287035]
[1761555814452,1.28077295,1154.6,1151.4,0.54287035]
[1761555814655,1.28077295,1154.6,1151.5,0.54287035]
[1761555814851,1.28077295,1154.6,1151.6,0.54287035]
[1761555815158,1.28077295,1154.6,1151.7,0.54287035]
[1761555815457,1.28077295,1154.6,1151.8,0.54287035]
[1761555815656,1.28077295,1154.6,1151.3,0.641303]
[1761555815851,1.28077295,1154.6,1151.4,0.54306557]
[1761555816051,1.28077295,1154.6,1151.5,0.54306557]
[1761555816357,1.28077295,1154.6,1151.6,0.54306557]
[1761555816554,1.28077295,1154.6,1151.7,0.54306557]
[1761555816752,1.28077295,1154.6,1151.8,0.54306557]
[1761555816952,1.28077295,1154.6,1151.3,0.641303]
[1761555817156,1.28077295,1154.6,1151.4,0.54313876]
[1761555817356,1.28077295,1154.6,1151.5,0.54313876]
[1761555817554,1.28077295,1154.6,1151.6,0.54313876]
[1761555817754,1.28077295,1154.3,1151.7,0.54313876]
[1761555817954,1.28077295,1154.7,1151.8,0.54313876]
[1761555818153,1.28077295,1154.9,1151.9,0.54313876]
[1761555818355,1.28077295,1154.9,1152.0,0.54313876]
[1761555818557,1.28077295,1154.9,1152.1,0.54313876]
[1761555818755,1.28077295,1154.9,1152.2,0.54313876]
[1761555818955,1.28077295,1154.9,1151.6,0.641303]
[1761555819159,1.28077295,1154.9,1151.7,1.18667282]
[1761555819457,1.43168525,1155.0,1151.8,0.54536982]
[1761555819655,1.43168525,1155.0,1151.9,0.54536982]
[1761555819857,1.43168525,1155.0,1152.0,0.54536982]
[1761555820055,1.43168525,1155.0,1152.1,0.54536982]
[1761555820254,1.43168525,1155.0,1152.2,0.54536982]
[1761555820554,1.43168525,1155.0,1151.6,0.641303]
[1761555820754,1.43168525,1155.0,1151.7,0.54537879]
[1761555820957,0.1509123,1155.0,1151.8,0.54537879]
[1761555821158,0.1509123,1155.0,1151.9,0.54537879]
[1761555821357,0.1509123,1155.0,1152.0,0.54537879]
[1761555821556,0.1509123,1155.0,1152.1,0.54537879]
[1761555821758,0.1509123,1155.0,1152.2,0.54537879]
[1761555821956,0.1509123,1155.0,1151.4,0.641303]
[1761555822156,0.1509123,1155.0,1151.5,0.5454064]
[1761555822360,1.43168525,1155.0,1151.6,1.1867094]
[1761555822559,1.28077295,1154.9,1151.7,0.5454064]
[1761555822757,1.28077295,1155.1,1151.8,0.5454064]
[1761555822957,1.28077295,1155.1,1151.9,0.5454064]
[1761555823157,1.28077295,1155.2,1152.0,0.5454064]
[1761555823358,1.28077295,1155.2,1152.4,0.641303]
[1761555823558,1.28077295,1156.4,1152.7,0.641303]
[1761555823761,1.28077295,1156.4,1152.8,0.5454064]
[1761555824058,1.28077295,1155.4,1152.9,0.5454064]
[1761555824357,1.28077295,1155.9,1152.3,0.641303]
[1761555824556,1.28077295,1155.9,1152.4,0.54341664]
[1761555824857,1.28077295,1155.9,1152.3,0.641303]
[1761555824858,1.28077295,1155.8,1152.5,0.54341664]
[1761555825062,1.28077295,1155.2,1152.6,0.54341664]
[1761555825360,1.28077295,1155.1,1152.2,0.641303]
[1761555825560,1.28077295,1155.1,1152.3,0.54350821]
[1761555825755,1.28077295,1155.1,1152.4,0.54350821]
[1761555825960,1.28077295,1155.1,1152.5,0.54350821]
[1761555826162,1.28077295,1155.1,1152.2,0.641303]
[1761555826362,1.28077295,1155.1,1152.3,0.54324128]
[1761555826658,1.28077295,1155.2,1152.4,0.54324128]
[1761555826858,1.28077295,1155.5,1152.5,0.54324128]
[1761555827061,1.28077295,1155.5,1152.1,0.641303]
[1761555827262,1.28077295,1155.6,1152.2,0.54325281]
[1761555827564,1.28077295,1155.7,1152.3,0.54325281]
[1761555827760,1.28077295,1155.7,1152.4,0.54325281]
[1761555827964,1.28077295,1155.7,1152.5,0.54325281]
[1761555828166,1.28077295,1155.8,1152.6,0.54325281]
[1761555828366,1.28077295,1155.8,1152.1,0.641303]
[1761555828663,1.28077295,1155.8,1152.2,0.54268626]
[1761555828962,1.28077295,1155.8,1152.3,0.54268626]
[1761555829163,1.28077295,1155.8,1152.4,0.54268626]
[1761555829362,1.28077295,1155.8,1152.5,0.54268626]
[1761555829565,1.28077295,1155.8,1152.6,0.54268626]
[1761555829767,1.28077295,1155.8,1152.1,0.641303]
[1761555829967,1.28077295,1155.9,1152.2,0.54247979]
[1761555830168,1.28077295,1155.9,1152.3,0.54247979]
[1761555830463,1.28077295,1156.0,1152.4,0.54247979]
[1761555830668,1.28077295,1155.9,1152.5,0.54247979]
[1761555830869,1.28077295,1155.4,1152.1,0.641303]
[1761555831069,1.28077295,1155.3,1152.2,0.54244588]
[1761555831368,1.28077295,1155.3,1152.3,0.54244588]
[1761555831568,2.13925744,1156.0,1152.4,0.54244588]
[1761555831569,1.28077295,1155.2,1152.4,0.54244588]
[1761555831866,1.28077295,1155.2,1152.1,0.641303]
[1761555832065,1.28077295,1155.0,1152.2,0.54240094]
[1761555832269,1.28077295,1155.0,1151.8,0.641303]
[1761555832466,1.28077295,1155.0,1151.9,0.54242222]
[1761555832664,2.13925744,1155.8,1152.0,0.54242222]
[1761555832665,1.28077295,1155.1,1152.0,0.54242222]
[1761555832866,1.28077295,1155.1,1152.1,0.54242222]
[1761555833064,1.28077295,1155.0,1151.8,0.641303]
[1761555833265,1.28077295,1154.9,1151.9,0.54243317]
[1761555833466,1.28077295,1154.9,1151.7,0.641303]
[1761555833673,1.28077295,1154.7,1151.8,0.54266092]
[1761555833869,1.28077295,1154.7,1151.5,0.641303]
[1761555834070,1.28077295,1154.7,1151.6,0.54270345]
[1761555834269,1.28077295,1154.7,1151.7,0.54270345]
[1761555834466,1.28077295,1154.7,1151.8,0.54270345]
[1761555834668,1.28077295,1154.7,1151.5,0.641303]
[1761555834868,1.28077295,1154.7,1151.6,0.542776]
[1761555835173,1.28077295,1154.7,1151.7,0.542776]
[1761555835372,1.28077295,1154.7,1151.8,0.542776]
[1761555835573,1.28077295,1154.7,1151.5,0.641303]
[1761555835773,1.28077295,1154.7,1151.6,0.54287242]
[1761555835973,1.28077295,1154.7,1151.7,0.54287242]
[1761555836173,1.28077295,1154.7,1151.8,0.54287242]
[1761555836370,1.28077295,1154.6,1151.5,0.641303]
[1761555836671,1.28077295,1154.6,1151.6,0.54295765]
[1761555836970,1.28077295,1154.6,1151.7,0.54295765]
[1761555837170,1.28077295,1154.6,1151.5,0.641303]
[1761555837171,1.28077295,1155.1,1151.8,0.54295765]
[1761555837470,1.28077295,1155.1,1151.9,0.54295765]
[1761555837674,2.9949059,1155.8,1151.2,0.641303]
[1761555837675,1.28077295,1154.8,1151.2,0.641303]
[1761555837870,1.28077295,1154.6,1151.3,0.54316049]
[1761555838074,1.28077295,1154.4,1151.4,0.54316049]
[1761555838271,1.28077295,1154.2,1151.1,0.641303]
[1761555838473,1.28077295,1154.3,1151.2,0.54333993]
[1761555838670,1.28077295,1154.3,1151.3,0.54333993]
[1761555838872,1.28077295,1154.3,1151.4,0.54333993]
[1761555839072,1.28077295,1154.3,1151.0,0.641303]
[1761555839278,1.28077295,1154.3,1151.1,0.54286638]
[1761555839474,1.28077295,1154.3,1151.2,0.54286638]
[1761555839676,1.28077295,1154.3,1151.3,0.54286638]
[1761555839877,1.28077295,1154.3,1151.4,0.54286638]
[1761555840077,1.28077295,1154.4,1151.5,0.54286638]
[1761555840277,1.28077295,1154.3,1151.2,0.641303]
[1761555840478,1.28077295,1154.4,1151.3,0.54282851]
[1761555840678,1.28077295,1154.4,1151.4,0.54282851]
[1761555840974,1.28077295,1154.4,1151.5,0.54282851]
[1761555841278,1.28077295,1154.3,1151.2,0.641303]
[1761555841478,1.28077295,1154.3,1151.3,0.54299814]
[1761555841678,1.28077295,1154.3,1151.4,0.54299814]
[1761555841877,1.28077295,1154.8,1151.7,0.641303]
[1761555842075,1.28077295,1154.8,1151.8,0.54299814]
[1761555842279,2.9949059,1155.6,1151.7,0.641303]
[1761555842280,1.28077295,1154.7,1151.9,0.54299814]
[1761555842576,1.28077295,1154.7,1152.0,0.54299814]
[1761555842774,1.28077295,1154.7,1151.7,0.641303]
[1761555842979,1.28077295,1154.7,1151.8,0.5431309]
[1761555843176,1.28077295,1154.7,1151.9,0.5431309]
[1761555843376,1.28077295,1154.7,1152.0,0.5431309]
[1761555843574,1.28077295,1154.7,1151.7,0.641303]
[1761555843775,1.28077295,1154.7,1151.8,0.54326892]
[1761555843979,1.28077295,1154.8,1151.9,0.54326892]
[1761555844179,1.28077295,1154.9,1152.0,0.54326892]
[1761555844377,1.28077295,1155.2,1152.1,0.54326892]
[1761555844577,1.28077295,1155.2,1152.2,0.54326892]
[1761555844880,1.28077295,1155.4,1151.6,0.641303]
[1761555845179,1.28077295,1155.3,1151.7,0.54333948]
[1761555845482,1.28077295,1155.3,1151.8,0.54333948]
[1761555845682,1.28077295,1155.3,1151.9,0.54333948]
[1761555845881,1.28077295,1155.3,1152.0,0.54333948]
[1761555846179,1.28077295,1155.4,1152.1,0.54333948]
[1761555846378,1.28077295,1155.0,1152.2,0.54333948]
[1761555846580,1.28077295,1155.4,1152.3,0.54333948]
[1761555846882,1.28077295,1155.4,1152.4,0.54333948]
[1761555847082,1.28077295,1155.4,1152.5,0.54333948]
[1761555847280,1.28077295,1155.3,1152.0,0.641303]
[1761555847481,1.28077295,1155.0,1152.1,1.1851944]
[1761555847685,1.28077295,1155.0,1152.2,1.1851944]
[1761555847984,1.28077295,1155.0,1152.3,0.5438914]
[1761555848283,1.28077295,1155.0,1152.4,0.5438914]
[1761555848479,1.28077295,1155.0,1152.5,0.5438914]
[1761555848682,1.28077295,1155.0,1152.2,0.641303]
[1761555848882,1.28077295,1155.0,1152.3,0.54416828]
[1761555849184,1.28077295,1154.9,1152.4,0.54416828]
[1761555849485,1.28077295,1154.9,1152.5,0.54416828]
[1761555849685,1.28077295,1154.9,1152.2,0.641303]
[1761555849882,1.28077295,1154.9,1152.3,0.54478339]
[1761555850082,1.28077295,1154.9,1152.4,0.54478339]
[1761555850282,1.28077295,1154.8,1152.5,0.54478339]
[1761555850483,1.28077295,1154.8,1152.2,0.641303]
[1761555850784,1.28077295,1154.8,1152.3,0.54514074]
[1761555850986,1.28077295,1154.7,1152.4,0.54514074]
[1761555851182,1.28077295,1154.7,1152.1,0.641303]
[1761555851383,1.28077295,1154.6,1152.2,0.54558149]
[1761555851686,1.28077295,1154.5,1152.3,0.54558149]
[1761555851885,1.28077295,1154.5,1152.0,0.641303]
[1761555855183,1.28077295,1154.0,1151.9,0.54643081]
[1761555855387,1.28077295,1154.0,1152.0,0.54643081]
[1761555855585,1.28077295,1154.0,1151.6,0.641303]
[1761555855789,1.28077295,1154.0,1151.7,0.54659546]
[1761555856089,1.28077295,1154.4,1151.8,0.54659546]
[1761555856286,1.28077295,1154.3,1151.9,0.54659546]
[1761555856585,1.28077295,1154.3,1151.3,0.641303]
[1761555856886,1.28077295,1154.4,1151.4,0.54682458]
[1761555857087,1.28077295,1154.4,1151.5,0.54682458]
[1761555857289,1.28077295,1154.3,1151.6,0.54682458]
[1761555857585,1.28077295,1154.4,1151.7,0.54682458]
[1761555857785,1.28077295,1154.5,1151.8,0.54682458]
[1761555857989,1.28077295,1154.5,1151.9,0.54682458]
[1761555858186,1.28077295,1154.5,1152.0,0.54682458]
[1761555858486,1.28077295,1154.5,1152.1,0.54682458]
[1761555858690,1.28077295,1154.3,1151.6,0.641303]
[1761555858985,1.28077295,1154.3,1151.7,0.54718571]
[1761555859189,1.28077295,1154.3,1151.8,0.54718571]
[1761555859387,1.28077295,1154.3,1151.9,0.54718571]
[1761555859687,1.28077295,1154.2,1152.0,0.54718571]
[1761555859988,1.28077295,1154.2,1152.1,0.54718571]
[1761555860190,1.28077295,1154.2,1151.6,0.641303]
[1761555860387,1.28077295,1154.2,1151.7,0.54745128]
[1761555860591,1.28077295,1154.1,1151.8,0.54745128]
[1761555860791,1.28077295,1154.1,1151.9,0.54745128]
[1761555860988,1.28077295,1154.1,1152.0,0.54745128]
[1761555861193,1.28077295,1154.5,1152.1,0.54745128]
[1761555861390,1.28077295,1154.5,1152.2,0.54745128]
[1761555861690,1.28077295,1154.5,1151.6,0.641303]
[1761555861888,1.28077295,1154.7,1151.7,1.18898317]
[1761555862093,1.28077295,1154.7,1151.8,0.54768017]
[1761555862393,1.28077295,1154.7,1151.9,0.54768017]
[1761555862692,1.28077295,1154.7,1152.0,0.54768017]
[1761555862892,1.28077295,1154.7,1152.1,0.54768017]
[1761555863092,1.28077295,1154.7,1152.2,0.54768017]
[1761555863289,1.28077295,1154.2,1151.6,0.641303]
[1761555863494,1.28077295,1154.0,1151.7,0.54781589]
[1761555863693,1.28077295,1154.0,1151.8,0.54781589]
[1761555863891,1.28077295,1153.9,1151.9,0.54781589]
[1761555864089,1.28077295,1153.9,1152.0,0.54781589]
[1761555864292,1.28077295,1153.9,1151.6,0.641303]
[1761555864594,1.28077295,1153.9,1151.7,0.54783973]
[1761555864891,1.28077295,1153.9,1151.8,0.54783973]
[1761555865094,1.28077295,1153.9,1151.9,0.54783973]
[1761555865291,1.28077295,1153.9,1152.0,0.54783973]
[1761555865495,1.28077295,1153.9,1151.6,0.641303]
[1761555865791,1.28077295,1154.0,1151.7,0.54781206]
[1761555865994,1.28077295,1154.0,1151.8,0.54781206]
[1761555866193,1.28077295,1154.0,1151.9,0.54781206]
[1761555866395,1.28077295,1154.0,1152.0,0.54781206]
[1761555866594,1.28077295,1154.0,1151.6,0.641303]
[1761555866794,1.28077295,1154.0,1151.7,0.54778565]
[1761555866996,1.28077295,1154.0,1151.8,0.54778565]
[1761555867292,1.28077295,1154.3,1151.9,0.54778565]
[1761555867493,1.28077295,1154.4,1152.0,0.54778565]
[1761555867692,1.28077295,1154.4,1152.1,0.54778565]
[1761555867896,2.9949059,1155.6,1151.5,0.641303]
[1761555867897,1.28077295,1154.3,1151.5,0.641303]
[1761555868094,1.28077295,1154.4,1151.6,0.54775646]
[1761555868294,1.28077295,1154.4,1151.7,0.54775646]
[1761555868598,1.28077295,1154.4,1151.8,0.54775646]
[1761555868894,1.28077295,1154.4,1151.9,0.54775646]
[1761555869194,1.28077295,1154.4,1152.0,0.54775646]
[1761555869394,1.28077295,1154.3,1152.1,0.54775646]
[1761555869693,1.28077295,1154.3,1151.5,0.641303]
[1761555869898,1.28077295,1154.3,1151.6,0.54790603]
[1761555870198,1.28077295,1154.3,1151.7,0.54790603]
[1761555870398,1.28077295,1154.3,1151.8,0.54790603]
[1761555870696,1.28077295,1154.1,1151.9,0.54790603]
[1761555870998,1.28077295,1154.1,1151.4,0.641303]
[1761555871198,1.28077295,1154.1,1151.5,0.54816686]
[1761555871396,1.28077295,1154.1,1151.6,0.54816686]
[1761555871598,1.28077295,1154.0,1151.7,0.54816686]
[1761555871798,1.28077295,1154.0,1151.8,0.54816686]
[1761555871995,1.28077295,1154.0,1151.9,0.54816686]
[1761555872300,1.28077295,1154.0,1151.3,0.641303]
[1761555872496,1.28077295,1154.0,1151.4,0.54827964]
[1761555872697,1.28077295,1154.0,1151.5,0.54827964]
[1761555872895,1.28077295,1154.0,1151.6,0.54827964]
[1761555873096,1.28077295,1154.0,1151.7,0.54827964]
[1761555873297,1.28077295,1154.1,1151.8,0.54827964]
[1761555873500,1.28077295,1154.1,1151.9,0.54827964]
[1761555873700,1.28077295,1154.2,1152.0,0.54827964]
[1761555873900,1.28077295,1154.2,1151.4,0.641303]
[1761555874200,1.28077295,1154.2,1151.5,0.54825217]
[1761555874400,1.28077295,1154.2,1151.6,0.54825217]
[1761555874596,1.28077295,1154.2,1151.7,0.54825217]
[1761555874900,1.28077295,1154.2,1151.8,0.54825217]
[1761555875100,1.28077295,1154.2,1151.9,0.54825217]
[1761555875300,1.28077295,1154.2,1152.0,0.54825217]
[1761555875502,1.28077295,1154.2,1152.1,0.54825217]
[1761555875699,1.28077295,1154.2,1150.5,0.15109052]
[1761555875700,1.28077295,1153.9,1151.5,0.641303]
[1761555876002,1.28077295,1153.9,1151.6,0.54824511]
[1761555876300,0.1507848,1156.5,1151.5,0.641303]
[1761555876301,1.28077295,1154.0,1151.7,0.54824511]
[1761555876497,1.28077295,1154.0,1151.8,0.54824511]
[1761555876703,1.28077295,1154.0,1151.9,0.54824511]
[1761555877003,1.28077295,1154.0,1152.0,0.54824511]
[1761555877300,1.28077295,1154.2,1152.1,0.54824511]
[1761555877500,1.28077295,1154.2,1151.6,0.641303]
[1761555877701,1.28077295,1154.2,1151.7,0.54823299]
[1761555877899,1.28077295,1154.2,1151.8,0.54823299]
[1761555878200,1.28077295,1154.2,1151.9,0.54823299]
[1761555878398,1.28077295,1154.2,1152.0,0.54823299]
[1761555878604,1.28077295,1154.2,1152.1,0.54823299]
[1761555878802,1.28077295,1154.2,1152.2,0.54823299]
[1761555879001,1.28077295,1154.2,1151.6,0.641303]
[1761555879206,1.28077295,1154.2,1151.7,0.54664553]
[1761555879400,1.28077295,1154.2,1151.8,0.54664553]
[1761555879704,1.28077295,1154.2,1151.9,0.54664553]
[1761555880005,1.28077295,1154.2,1152.0,0.54664553]
[1761555880203,1.28077295,1154.2,1152.1,0.54664553]
[1761555880404,1.28077295,1154.2,1151.6,0.641303]
[1761555880602,1.28077295,1154.2,1151.7,0.54661098]
[1761555880806,1.28077295,1154.2,1151.8,0.54661098]
[1761555881003,1.28077295,1154.2,1151.9,0.54661098]
[1761555881303,1.28077295,1154.2,1152.0,0.54661098]
[1761555881503,1.28077295,1154.2,1152.1,0.54661098]
[1761555881704,1.28077295,1154.2,1151.6,0.641303]
[1761555881904,1.28077295,1154.2,1151.7,0.54659541]
[1761555882102,1.28077295,1154.1,1151.8,0.54659541]
[1761555882308,1.28077295,1154.1,1151.9,0.54659541]
[1761555882508,1.28077295,1154.1,1152.0,0.54659541]
[1761555882709,1.28077295,1154.1,1152.1,0.54659541]
[1761555883005,1.28077295,1154.3,1151.5,0.641303]
[1761555883211,1.28077295,1154.3,1151.6,0.54657009]
[1761555883410,1.28077295,1154.3,1151.7,0.54657009]
[1761555883607,1.28077295,1154.3,1151.8,0.54657009]
[1761555883811,1.28077295,1154.3,1151.6,0.641303]
[1761555883812,1.28077295,1154.3,1151.9,0.54657009]
[1761555884011,1.28077295,1154.3,1152.0,0.54657009]
[1761555884212,1.28077295,1154.2,1152.1,0.54657009]
[1761555884410,1.28077295,1154.2,1152.2,0.54657009]
[1761555884708,1.28077295,1154.2,1151.6,0.641303]
[1761555884910,1.28077295,1154.2,1151.7,0.54699208]
[1761555885108,1.28077295,1154.2,1151.8,0.54699208]
[1761555885314,1.28077295,1154.0,1151.9,0.54699208]
[1761555885513,1.28077295,1154.0,1152.0,0.54699208]
[1761555885710,1.28077295,1154.0,1152.1,0.54699208]
[1761555885914,1.28077295,1153.9,1152.2,0.54699208]
[1761555886115,1.28077295,1153.9,1151.7,0.641303]
[1761555886410,1.28077295,1153.8,1151.8,0.5472913]
[1761555886610,1.28077295,1153.8,1151.9,0.5472913]
[1761555886810,1.28077295,1153.8,1152.0,0.5472913]
[1761555887012,1.28077295,1153.8,1152.1,0.5472913]
[1761555887213,1.28077295,1153.8,1151.7,0.641303]
[1761555887512,1.28077295,1153.8,1151.8,0.54747616]
[1761555887814,1.28077295,1153.9,1151.9,0.54747616]
[1761555888019,1.28077295,1154.1,1152.0,1.18877916]
[1761555888213,1.28077295,1154.1,1152.1,0.54747616]
[1761555888517,1.28077295,1154.1,1152.2,0.54747616]
[1761555888716,1.28077295,1154.0,1152.3,0.54747616]
[1761555888916,1.28077295,1153.9,1152.4,0.54747616]
[1761555889117,1.28077295,1153.9,1152.1,0.641303]
[1761555889416,1.28077295,1153.9,1152.2,0.54780401]
[1761555889617,1.28077295,1153.9,1152.3,0.54780401]
[1761555889815,1.28077295,1153.9,1152.4,0.54780401]
[1761555890115,1.28077295,1153.9,1152.1,0.641303]
[1761555890315,1.28077295,1154.0,1152.2,0.54804639]
[1761555890618,1.28077295,1154.0,1152.3,0.54804639]
[1761555890817,1.28077295,1154.0,1152.4,0.54804639]
[1761555891015,1.28077295,1154.0,1152.1,0.641303]
[1761555891016,1.28077295,1154.0,1152.5,0.54804639]
[1761555891216,1.28077295,1153.9,1152.1,0.641303]
[1761555891516,1.28077295,1153.9,1152.2,0.54822059]
[1761555891715,1.28077295,1153.9,1152.3,0.54822059]
[1761555891916,1.28077295,1154.0,1152.4,0.54822059]
[1761555892220,1.28077295,1154.0,1152.5,0.54822059]
[1761555892520,1.28077295,1154.0,1152.1,0.641303]
[1761555892815,1.28077295,1154.1,1152.2,0.54835536]
[1761555893017,1.28077295,1154.1,1152.3,0.54835536]
[1761555893222,1.28077295,1154.1,1152.4,0.54835536]
[1761555893418,1.28077295,1154.1,1152.5,0.54835536]
[1761555893622,1.28077295,1154.2,1152.6,0.54835536]
[1761555893821,1.28077295,1154.2,1152.7,0.54835536]
[1761555894020,1.28077295,1154.2,1152.2,0.641303]
[1761555894218,1.28077295,1154.2,1152.3,0.54839609]
[1761555894419,1.28077295,1154.2,1152.4,0.54839609]
[1761555894718,1.28077295,1154.2,1152.5,0.54839609]
[1761555894920,1.28077295,1154.2,1152.6,0.54839609]
[1761555895119,1.28077295,1154.5,1152.7,0.54839609]
[1761555895320,1.28077295,1154.5,1152.8,0.54839609]
[1761555895521,1.28077295,1154.5,1152.9,0.54839609]
[1761555895722,1.28077295,1154.5,1152.3,0.641303]
[1761555895926,1.28077295,1154.5,1152.4,0.54814912]
[1761555896223,1.28077295,1154.5,1152.5,0.54814912]
[1761555896522,1.28077295,1154.6,1152.6,0.54814912]
[1761555896722,1.28077295,1154.6,1152.7,0.54814912]
[1761555896926,1.28077295,1154.6,1152.8,0.54814912]
[1761555897224,1.28077295,1154.6,1152.9,0.54814912]
[1761555897523,1.28077295,1154.6,1152.3,0.641303]
[1761555897726,1.28077295,1154.6,1152.4,0.54789759]
[1761555897926,1.28077295,1154.6,1152.5,0.54789759]
[1761555898122,1.28077295,1154.6,1152.6,0.54789759]
[1761555898422,1.28077295,1154.6,1152.7,0.54789759]
[1761555898624,1.28077295,1154.6,1152.8,0.54789759]
[1761555898822,1.28077295,1154.6,1152.9,0.54789759]
[1761555899027,1.28077295,1154.8,1152.3,0.641303]
[1761555899228,1.28077295,1154.8,1152.4,1.18905805]
[1761555899423,1.28077295,1154.8,1152.5,0.54775505]
[1761555899627,1.28077295,1154.8,1152.6,0.54775505]
[1761555899828,1.28077295,1154.9,1152.7,0.54775505]
[1761555900027,1.28077295,1154.9,1152.8,0.54775505]
[1761555900327,1.28077295,1154.9,1152.9,0.54775505]
[1761555900528,1.28077295,1154.8,1152.3,0.641303]
[1761555900725,1.28077295,1154.8,1152.4,0.54762219]
[1761555901024,1.28077295,1154.4,1152.5,0.54762219]
[1761555901229,1.28077295,1154.4,1152.6,0.54762219]
[1761555901526,1.28077295,1154.2,1152.7,0.54762219]
[1761555901725,1.28077295,1154.4,1152.0,0.641303]
[1761555901928,1.28077295,1154.0,1152.1,0.54777115]
[1761555902126,1.28077295,1154.0,1152.2,0.54777115]
[1761555902326,1.28077295,1154.0,1151.7,0.641303]
[1761555902525,1.28077295,1154.0,1151.8,0.54777773]
[1761555902723,1.28077295,1154.0,1151.9,0.54777773]
[1761555902927,1.28077295,1154.0,1152.0,0.54777773]
[1761555903125,1.28077295,1154.0,1152.1,0.54777773]
[1761555903426,1.28077295,1154.0,1152.2,0.54777773]
[1761555903629,1.28077295,1154.0,1152.3,0.54777773]
[1761555903929,1.28077295,1153.7,1151.1,0.641303]
[1761555904129,1.28077295,1153.8,1151.2,0.54746659]
[1761555904332,1.28077295,1153.7,1151.3,0.54746659]
[1761555904626,1.28077295,1153.7,1151.4,0.54746659]
[1761555904829,1.28077295,1153.7,1151.5,0.54746659]
[1761555905028,1.28077295,1153.7,1151.6,0.54746659]
[1761555905227,1.28077295,1153.7,1151.7,0.54746659]
[1761555905526,1.28077295,1153.7,1151.0,0.641303]
[1761555905730,1.28077295,1153.7,1151.1,0.54657977]
[1761555905928,1.28077295,1153.7,1151.2,0.54657977]
[1761555906131,1.28077295,1153.7,1151.3,0.54657977]
[1761555906431,1.28077295,1153.7,1151.4,0.54657977]
[1761555906631,1.28077295,1153.7,1151.5,0.54657977]
[1761555906831,1.28077295,1153.8,1151.6,0.54657977]
[1761555907029,1.28077295,1153.8,1151.0,0.641303]
[1761555907228,1.28077295,1153.8,1151.1,0.54625423]
[1761555907428,1.28077295,1153.8,1151.2,0.54625423]
[1761555907632,1.28077295,1153.8,1151.3,0.54625423]
[1761555907828,1.28077295,1153.8,1151.4,0.54625423]
[1761555908027,1.28077295,1153.8,1151.5,0.54625423]
[1761555908225,1.28077295,1153.8,1151.6,0.54625423]
[1761555908432,1.28077295,1153.8,1151.0,0.641303]
[1761555908632,1.28077295,1153.8,1151.1,0.54619129]
[1761555908832,1.28077295,1153.8,1151.2,0.54619129]
[1761555909029,1.28077295,1153.8,1151.3,0.54619129]
[1761555909329,1.28077295,1153.8,1151.4,0.54619129]
[1761555909528,1.28077295,1153.8,1151.5,0.54619129]
[1761555909828,1.28077295,1153.9,1151.6,0.54619129]
[1761555910031,1.28077295,1153.9,1151.7,0.54619129]
[1761555910334,1.28077295,1153.9,1151.0,0.641303]
[1761555910532,1.28077295,1153.9,1151.1,0.54732616]
[1761555910730,1.28077295,1153.9,1151.2,0.54732616]
[1761555910931,1.28077295,1153.9,1151.3,0.54732616]
[1761555911128,1.28077295,1153.9,1151.4,0.54732616]
[1761555911332,1.28077295,1153.9,1151.5,0.54732616]
[1761555911529,1.28077295,1153.9,1151.6,0.54732616]
[1761555911832,1.28077295,1153.9,1151.0,0.641303]
[1761555912030,1.28077295,1153.2,1151.2,0.641303]
[1761555912329,1.28077295,1153.3,1150.7,0.641303]
[1761555912533,1.28077295,1153.5,1150.8,0.54724208]
[1761555912833,1.28077295,1153.5,1150.9,0.54724208]
[1761555913032,1.28077295,1153.5,1151.0,0.54724208]
[1761555913231,1.28077295,1153.6,1151.1,0.54724208]
[1761555913433,1.28077295,1153.6,1151.2,0.54724208]
[1761555913729,1.28077295,1153.6,1150.6,0.641303]